fUST/lending_fUST_20250713
["ID","MTS","AMOUNT","RATE_DAILY","PERIOD"]
[371693268,1752390643788,-460.0,0.00017043,2]
[371693274,1752390643800,-1411.49,0.00017043,2]
[371693279,1752390643810,-856.23,0.00017043,2]
[371693281,1752390643820,-460.0,0.00017043,2]
[371693284,1752390643830,-500.39348801,0.00017074,2]
[371693287,1752390643839,-500.0,0.00017074,2]
[371693290,1752390643849,-500.0,0.00017074,2]
[371693293,1752390643859,-620.7408733,0.00017095,2]
[371693296,1752390643869,-12230.09247239,0.000171,2]
[371693299,1752390643878,-514.28741325,0.00017121,2]
[371693301,1752390643888,-500.0,0.00017121,2]
[371693303,1752390643898,-500.0,0.00017121,2]
[371693305,1752390643908,-1000.0,0.00017121,2]
[371693307,1752390643918,-500.0,0.00017121,2]
[371693309,1752390643928,-1000.0,0.00017121,2]
[371693311,1752390643938,-1004.43436431,0.00017121,2]
[371693313,1752390643952,-460.0,0.00017142,2]
[371693315,1752390643962,-460.0,0.00017142,2]
[371693317,1752390643971,-460.0,0.00017142,2]
[371693319,1752390643982,-157.13899942,0.00017142,2]
[371693321,1752390643993,-460.0,0.00017142,2]
[371693323,1752390644003,-460.0,0.00017142,2]
[371693325,1752390644012,-460.0,0.00017142,2]
[371693327,1752390644022,-460.0,0.00017142,2]
[371693329,1752390644033,-460.0,0.00017142,2]
[371693331,1752390644043,-460.0,0.00017142,2]
[371693333,1752390644053,-460.0,0.00017142,2]
[371693335,1752390644063,-460.0,0.00017142,2]
[371693337,1752390644073,-460.0,0.00017142,2]
[371693339,1752390644082,-460.0,0.00017142,2]
[371693341,1752390644092,-460.0,0.00017142,2]
[371693343,1752390644102,-460.0,0.00017142,2]
[371693345,1752390644112,-460.0,0.00017142,2]
[371693347,1752390644122,-460.0,0.00017142,2]
[371693349,1752390644132,-460.0,0.00017142,2]
[371693351,1752390644141,-460.0,0.00017142,2]
[371693353,1752390644151,-460.0,0.00017142,2]
[371693356,1752390644162,-576.39,0.00017142,2]
[371693358,1752390644173,-468.16342656,0.00017142,2]
[371693359,1752390644185,-460.0,0.00017142,2]
[371693361,1752390644195,-463.15071101,0.00017142,2]
[371693364,1752390644204,-460.0,0.00017142,2]
[371693366,1752390644214,-460.0,0.00017142,2]
[371693368,1752390644225,-460.0,0.00017142,2]
[371693370,1752390644235,-474.76,0.00017142,2]
[371693372,1752390644249,-500.0,0.00017142,2]
[371693374,1752390644259,-460.0,0.00017142,2]
[371693376,1752390644269,-460.0,0.00017142,2]
[371693378,1752390644279,-464.95,0.00017142,2]
[371693380,1752390644289,-463.07366615,0.00017142,2]
[371693382,1752390644299,-460.0,0.00017142,2]
[371693384,1752390644308,-460.0,0.00017142,2]
[371693386,1752390644318,-460.0,0.00017142,2]
[371693388,1752390644328,-460.0,0.00017142,2]
[371693390,1752390644342,-460.0,0.00017142,2]
[371693393,1752390644351,-460.0,0.00017142,2]
[371693395,1752390644362,-562.92,0.00017142,2]
[371693397,1752390644371,-715.88,0.00017142,2]
[371693398,1752390644380,-460.0,0.00017142,2]
[371693401,1752390644390,-460.0,0.00017142,2]
[371693403,1752390644399,-313.90619968,0.00017142,2]
[371693405,1752390644409,-460.0,0.00017142,2]
[371693407,1752390644419,-460.0,0.00017142,2]
[371693409,1752390644428,-460.0,0.00017142,2]
[371693411,1752390644438,-2389.55,0.00017142,2]
[371693413,1752390644447,-460.0,0.00017142,2]
[371693414,1752390644457,-460.0,0.00017142,2]
[371693416,1752390644466,-664.35,0.00017142,2]
[371693419,1752390644476,-460.0,0.00017142,2]
[371693421,1752390644486,-989.71,0.00017142,2]
[371693423,1752390644495,-460.0,0.00017143,2]
[371693425,1752390644504,-460.0,0.00017143,2]
[371693427,1752390644514,-465.477809,0.00017143,2]
[371693428,1752390644524,-460.0,0.00017143,2]
[371693431,1752390644534,-460.0,0.00017143,2]
[371693432,1752390644543,-460.0,0.00017143,2]
[371693435,1752390644553,-460.0,0.00017143,2]
[371693437,1752390644563,-460.0,0.00017143,2]
[371693456,1752390644572,-460.0,0.00017143,2]
[371693459,1752390644746,-460.0,0.00017143,2]
[371693461,1752390644755,-460.0,0.00017143,2]
[371693463,1752390644765,-460.0,0.00017143,2]
[371693465,1752390644774,-504.5,0.00017143,2]
[371693467,1752390644783,-460.0,0.00017143,2]
[371693469,1752390644792,-1008.27,0.00017143,2]
[371693470,1752390644803,-470.49304686,0.00017143,2]
[371693473,1752390644813,-460.0,0.00017143,2]
[371693474,1752390644823,-460.0,0.00017143,2]
[371693477,1752390644833,-464.47688432,0.00017143,2]
[371693479,1752390644842,-605.53,0.00017143,2]
[371693480,1752390644851,-868.12,0.00017143,2]
[371693483,1752390644862,-579.23,0.00017143,2]
[371693485,1752390644871,-500.0,0.00017143,2]
[371693487,1752390644881,-600.55531265,0.00017143,2]
[371693489,1752390644890,-2752.06,0.00017143,2]
[371693491,1752390644899,-747.79,0.00017143,2]
[371693493,1752390644909,-359.11428752,0.00017143,2]
[371693495,1752390644919,-460.0,0.00017143,2]
[371693497,1752390644928,-460.0,0.00017144,2]
[371693499,1752390644937,-578.5,0.00017144,2]
[371693501,1752390644951,-460.0,0.00017145,2]
[371693503,1752390644961,-460.0,0.00017145,2]
[371693505,1752390644970,-460.0,0.00017145,2]
[371693507,1752390644979,-460.0,0.00017145,2]
[371693509,1752390644989,-460.0,0.00017145,2]
[371693511,1752390644998,-500.0,0.00017152,2]
[371693513,1752390645007,-3372.84338567,0.00017153,2]
[371693515,1752390645018,-214.7001305,0.00017155,2]
[371693517,1752390645027,-321.49748842,0.00017184,2]
[371693519,1752390645036,-1895.5075078,0.00017232,2]
[371693521,1752390645046,-768.79883834,0.00017282,2]
[371693523,1752390645055,-460.0,0.00017317,2]
[371693525,1752390645065,-460.0,0.00017317,2]
[371693527,1752390645075,-787.46,0.00017317,2]
[371693529,1752390645084,-3176.42,0.00017317,2]
[371693531,1752390645093,-313.96587443,0.00017317,2]
[371693533,1752390645102,-1658.7,0.00017317,2]
[371693535,1752390645112,-947.81,0.00017317,2]
[371693537,1752390645121,-460.0,0.00017317,2]
[371693538,1752390645132,-460.0,0.00017317,2]
[371693541,1752390645141,-1411.49,0.00017317,2]
[371693543,1752390645150,-856.23,0.00017317,2]
[371693544,1752390645160,-151.0,0.000174,2]
[371693547,1752390645169,-460.0,0.00017416,2]
[371693548,1752390645178,-460.0,0.00017416,2]
[371693551,1752390645188,-163.22387918,0.00017416,2]
[371693552,1752390645197,-460.0,0.00017416,2]
[371693554,1752390645207,-460.0,0.00017416,2]
[371693556,1752390645216,-463.77791415,0.00017416,2]
[371693558,1752390645227,-460.0,0.00017416,2]
[371693560,1752390645238,-460.0,0.00017416,2]
[371693563,1752390645248,-460.0,0.00017416,2]
[371693564,1752390645257,-460.0,0.00017416,2]
[371693566,1752390645266,-460.0,0.00017416,2]
[371693568,1752390645276,-460.0,0.00017416,2]
[371693571,1752390645285,-460.0,0.00017416,2]
[371693572,1752390645297,-460.0,0.00017416,2]
[371693574,1752390645306,-460.0,0.00017416,2]
[371693577,1752390645316,-576.39,0.00017416,2]
[371693578,1752390645326,-460.0,0.00017416,2]
[371693580,1752390645336,-487.79274286,0.00017416,2]
[371693583,1752390645345,-460.0,0.00017416,2]
[371693584,1752390645354,-460.0,0.00017416,2]
[371693586,1752390645364,-474.76,0.00017416,2]
[371693589,1752390645374,-500.0,0.00017416,2]
[371693591,1752390645383,-460.0,0.00017416,2]
[371693593,1752390645392,-460.0,0.00017416,2]
[371693595,1752390645402,-464.95,0.00017416,2]
[371693596,1752390645412,-460.0,0.00017416,2]
[371693599,1752390645422,-460.0,0.00017416,2]
[371693601,1752390645431,-460.0,0.00017416,2]
[371693603,1752390645442,-462.3757365,0.00017416,2]
[371693605,1752390645451,-460.0,0.00017416,2]
[371693607,1752390645460,-562.92,0.00017416,2]
[371693609,1752390645470,-715.88,0.00017416,2]
[371693611,1752390645479,-460.0,0.00017416,2]
[371693612,1752390645488,-603.7388468,0.00017416,2]
[371693614,1752390645498,-460.0,0.00017416,2]
[371693616,1752390645508,-460.0,0.00017416,2]
[371693619,1752390645517,-2389.55,0.00017416,2]
[371693621,1752390645527,-460.0,0.00017416,2]
[371693623,1752390645536,-460.0,0.00017416,2]
[371693624,1752390645546,-664.35,0.00017416,2]
[371693627,1752390645556,-460.0,0.00017416,2]
[371693629,1752390645565,-989.71,0.00017416,2]
[371693631,1752390645574,-460.0,0.00017417,2]
[371693633,1752390645584,-269.92126635,0.00017417,2]
[371693635,1752390645593,-460.0,0.00017417,2]
[371693637,1752390645602,-460.0,0.00017417,2]
[371693639,1752390645612,-460.0,0.00017417,2]
[371693641,1752390645621,-460.0,0.00017417,2]
[371693643,1752390645631,-460.0,0.00017417,2]
[371693644,1752390645641,-460.0,0.00017417,2]
[371693647,1752390645650,-504.5,0.00017417,2]
[371693648,1752390645660,-460.0,0.00017417,2]
[371693650,1752390645669,-1008.27,0.00017417,2]
[371693652,1752390645678,-460.0,0.00017417,2]
[371693654,1752390645687,-460.0,0.00017417,2]
[371693656,1752390645696,-605.53,0.00017417,2]
[371693658,1752390645705,-868.12,0.00017417,2]
[371693660,1752390645715,-579.23,0.00017417,2]
[371693662,1752390645724,-2752.06,0.00017417,2]
[371693664,1752390645733,-747.79,0.00017417,2]
[371693666,1752390645743,-573.45489906,0.00017417,2]
[371693668,1752390645752,-460.0,0.00017418,2]
[371693670,1752390645761,-460.0,0.00017419,2]
[371693672,1752390645771,-460.0,0.00017419,2]
[371693675,1752390645784,-460.0,0.00017419,2]
[371693677,1752390645796,-12230.09247233,0.00017521,2]
[371693678,1752390645805,-460.0,0.00017591,2]
[371693681,1752390645815,-249.06617728,0.00017591,2]
[371693683,1752390645824,-787.46,0.00017591,2]
[371693685,1752390645834,-3176.42,0.00017591,2]
[371693687,1752390645843,-1658.7,0.00017591,2]
[371693689,1752390645852,-947.81,0.00017591,2]
[371693691,1752390645862,-460.0,0.00017591,2]
[371693693,1752390645871,-362.5241419,0.00017591,2]
[371693695,1752390645880,-1411.49,0.00017591,2]
[371693697,1752390645890,-856.23,0.00017591,2]
[371693699,1752390645899,-629.7172109,0.00017644,2]
[371693701,1752390645908,-1500.0,0.00017668,2]
[371693702,1752390645918,-1500.0,0.00017668,2]
[371693703,1752390645927,-768.79883834,0.00017682,2]
[371693704,1752390645937,-460.0,0.0001769,2]
[371693705,1752390645950,-460.0,0.0001769,2]
[371693706,1752390645960,-460.0,0.0001769,2]
[371693708,1752390645970,-460.0,0.0001769,2]
[371693710,1752390645979,-460.0,0.0001769,2]
[371693712,1752390645989,-460.0,0.0001769,2]
[371693714,1752390645999,-460.0,0.0001769,2]
[371693716,1752390646008,-473.47939645,0.0001769,2]
[371693718,1752390646018,-576.39,0.0001769,2]
[371693720,1752390646028,-460.0,0.0001769,2]
[371693722,1752390646037,-460.0,0.0001769,2]
[371693724,1752390646046,-460.0,0.0001769,2]
[371693726,1752390646056,-474.76,0.0001769,2]
[371693728,1752390646066,-499.84241935,0.0001769,2]
[371693730,1752390646076,-460.0,0.0001769,2]
[371693732,1752390646085,-464.95,0.0001769,2]
[371693734,1752390646095,-460.0,0.0001769,2]
[371693736,1752390646105,-466.4211985,0.0001769,2]
[371693738,1752390646114,-460.0,0.0001769,2]
[371693740,1752390646123,-562.92,0.0001769,2]
[371693742,1752390646132,-715.88,0.0001769,2]
[371693744,1752390646142,-460.0,0.0001769,2]
[371693746,1752390646151,-460.0,0.0001769,2]
[371693748,1752390646161,-460.0,0.0001769,2]
[371693750,1752390646170,-2389.55,0.0001769,2]
[371693752,1752390646180,-207.4605346,0.0001769,2]
[371693754,1752390646189,-590.38,0.0001769,2]
[371693756,1752390646199,-664.35,0.0001769,2]
[371693758,1752390646208,-460.0,0.0001769,2]
[371693760,1752390646218,-989.71,0.0001769,2]
[371693762,1752390646227,-460.0,0.00017691,2]
[371693764,1752390646237,-460.0,0.00017691,2]
[371693766,1752390646246,-460.0,0.00017691,2]
[371693768,1752390646256,-159.96084277,0.00017691,2]
[371693771,1752390646266,-504.5,0.00017691,2]
[371693773,1752390646275,-1008.27,0.00017691,2]
[371693775,1752390646285,-460.0,0.00017691,2]
[371693777,1752390646294,-460.0,0.00017691,2]
[371693779,1752390646303,-605.53,0.00017691,2]
[371693781,1752390646313,-868.12,0.00017691,2]
[371693782,1752390646322,-579.23,0.00017691,2]
[371693784,1752390646332,-2752.06,0.00017691,2]
[371693786,1752390646342,-747.79,0.00017691,2]
[371693787,1752390646353,-460.0,0.00017693,2]
[371693788,1752390646362,-460.0,0.00017693,2]
[371693789,1752390646372,-474.27063865,0.00017693,2]
[371693790,1752390646382,-151.0,0.000177,2]
[371693791,1752390646391,-164.43,0.00017776,2]
[371693792,1752390646401,-491.21272638,0.00017829,2]
[371693793,1752390646411,-12230.09247233,0.00017831,2]
[371693794,1752390646420,-519.68,0.00017856,3]
[371693795,1752390646430,-460.0,0.00017865,2]
[371693796,1752390646439,-787.46,0.00017865,2]
[371693797,1752390646450,-3176.42,0.00017865,2]
[371693798,1752390646470,-1658.7,0.00017865,2]
[371693799,1752390646480,-947.81,0.00017865,2]
[371693801,1752390646490,-460.0,0.00017865,2]
[371693802,1752390646500,-1411.49,0.00017865,2]
[371693803,1752390646510,-856.23,0.00017865,2]
[371693804,1752390646520,-768.79883834,0.00017952,2]
[371693805,1752390646530,-460.0,0.00017964,2]
[371693806,1752390646540,-419.37008146,0.00017964,2]
[371693807,1752390646550,-460.0,0.00017964,2]
[371693808,1752390646560,-460.0,0.00017964,2]
[371693809,1752390646570,-460.0,0.00017964,2]
[371693810,1752390646579,-460.0,0.00017964,2]
[371693811,1752390646589,-576.39,0.00017964,2]
[371693812,1752390646598,-460.0,0.00017964,2]
[371693813,1752390646608,-460.0,0.00017964,2]
[371693814,1752390646618,-206.06,0.00017964,2]
[371693816,1752390646627,-474.76,0.00017964,2]
[371693818,1752390646637,-460.0,0.00017964,2]
[371693819,1752390646647,-464.95,0.00017964,2]
[371693821,1752390646657,-251.29499481,0.00017964,2]
[371693822,1752390646666,-460.0,0.00017964,2]
[371693823,1752390646676,-562.92,0.00017964,2]
[371693824,1752390646687,-715.88,0.00017964,2]
[371693825,1752390646696,-460.0,0.00017964,2]
[371693826,1752390646705,-460.0,0.00017964,2]
[371693827,1752390646715,-233.54156638,0.00017964,2]
[371693828,1752390646725,-2389.55,0.00017964,2]
[371693829,1752390646734,-664.35,0.00017964,2]
[371693830,1752390646744,-468.93352812,0.00017964,2]
[371693831,1752390646753,-989.71,0.00017964,2]
[371693832,1752390646765,-460.0,0.00017965,2]
[371693834,1752390646774,-460.0,0.00017965,2]
[371693836,1752390646784,-504.5,0.00017965,2]
[371693838,1752390646793,-1008.27,0.00017965,2]
[371693840,1752390646802,-460.0,0.00017965,2]
[371693842,1752390646811,-460.0,0.00017965,2]
[371693843,1752390646821,-605.53,0.00017965,2]
[371693845,1752390646830,-868.12,0.00017965,2]
[371693847,1752390646840,-579.23,0.00017965,2]
[371693849,1752390646849,-2752.06,0.00017965,2]
[371693851,1752390646859,-747.79,0.00017965,2]
[371693852,1752390646868,-460.0,0.00017967,2]
[371693853,1752390646877,-1895.5075078,0.00017991,2]
[371693854,1752390646887,-151.0,0.00018,2]
[371693855,1752390646897,-420.0,0.00018024,2]
[371693856,1752390646906,-271.85586986,0.00018028,2]
[371693857,1752390646917,-787.46,0.00018139,2]
[371693858,1752390646927,-3176.42,0.00018139,2]
[371693859,1752390646937,-1658.7,0.00018139,2]
[371693861,1752390646950,-947.81,0.00018139,2]
[371693863,1752390646960,-460.0,0.00018139,2]
[371693865,1752390646970,-1411.49,0.00018139,2]
[371693867,1752390646979,-856.23,0.00018139,2]
[371693869,1752390646989,-768.79883834,0.00018141,2]
[371693871,1752390646999,-12230.09247233,0.00018141,2]
[371693872,1752390647008,-25000.0,0.00018187,2]
[371693874,1752390647018,-207.4,0.00018187,2]
[371693876,1752390647029,-507.57266618,0.00018216,2]
[371693878,1752390647038,-508.2189503,0.00018216,2]
[371693879,1752390647048,-460.0,0.00018238,2]
[371693880,1752390647058,-460.0,0.00018238,2]
[371693881,1752390647068,-460.0,0.00018238,2]
[371693882,1752390647077,-460.0,0.00018238,2]
[371693883,1752390647087,-576.39,0.00018238,2]
[371693884,1752390647097,-460.0,0.00018238,2]
[371693885,1752390647106,-460.0,0.00018238,2]
[371693886,1752390647116,-474.76,0.00018238,2]
[371693887,1752390647126,-460.0,0.00018238,2]
[371693888,1752390647135,-464.95,0.00018238,2]
[371693889,1752390647145,-460.0,0.00018238,2]
[371693890,1752390647155,-562.92,0.00018238,2]
[371693891,1752390647166,-715.88,0.00018238,2]
[371693892,1752390647175,-460.0,0.00018238,2]
[371693893,1752390647186,-460.0,0.00018238,2]
[371693894,1752390647196,-2389.55,0.00018238,2]
[371693895,1752390647205,-664.35,0.00018238,2]
[371693896,1752390647216,-460.0,0.00018239,2]
[371693897,1752390647226,-504.5,0.00018239,2]
[371693898,1752390647236,-1008.27,0.00018239,2]
[371693899,1752390647246,-428.51195447,0.00018239,2]
[371693900,1752390647255,-460.0,0.00018239,2]
[371693901,1752390647265,-605.53,0.00018239,2]
[371693902,1752390647275,-868.12,0.00018239,2]
[371693903,1752390647285,-579.23,0.00018239,2]
[371693904,1752390647296,-2752.06,0.00018239,2]
[371693905,1752390647306,-747.79,0.00018239,2]
[371693906,1752390647316,-460.0,0.00018241,2]
[371693907,1752390647326,-273.47433368,0.00018249,2]
[371693908,1752390647336,-1669.71470236,0.00018263,2]
[371693909,1752390647346,-151.0,0.000184,2]
[371693910,1752390647355,-506.39072393,0.00018407,2]
[371693911,1752390647365,-787.46,0.00018413,2]
[371693912,1752390647375,-3176.42,0.00018413,2]
[371693913,1752390647385,-1658.7,0.00018413,2]
[371693914,1752390647395,-947.81,0.00018413,2]
[371693915,1752390647405,-460.0,0.00018413,2]
[371693916,1752390647417,-1411.49,0.00018413,2]
[371693917,1752390647426,-856.23,0.00018413,2]
[371693918,1752390647436,-215.42595214,0.00018415,2]
[371693919,1752390647446,-838.53376533,0.00018415,2]
[371693920,1752390647456,-160.0,0.00018415,2]
[371693921,1752390647465,-160.0,0.00018416,2]
[371693922,1752390647475,-160.0,0.00018416,2]
[371693923,1752390647484,-160.0,0.00018416,2]
[371693924,1752390647494,-160.0,0.00018416,2]
[371693925,1752390647504,-160.0,0.00018416,2]
[371693926,1752390647513,-160.0,0.00018416,2]
[371693927,1752390647526,-230.68503973,0.00018416,2]
[371693928,1752390647536,-500.0,0.0001845,2]
[371693929,1752390647545,-500.0,0.0001845,2]
[371693930,1752390647699,-500.0,0.0001845,2]
[371693931,1752390647709,-500.0,0.0001845,2]
[371693932,1752390647719,-12230.09247233,0.00018452,2]
[371693933,1752390647729,-197.32,0.00018487,2]
[371693934,1752390647739,-768.79883834,0.00018492,2]
[371693935,1752390647748,-500.0,0.00018511,2]
[371693936,1752390647757,-500.0,0.00018511,2]
[371693937,1752390647767,-500.0,0.00018511,2]
[371693938,1752390647777,-247.12889469,0.00018511,2]
[371693939,1752390647787,-500.0,0.00018511,2]
[371693940,1752390647797,-500.0,0.00018511,2]
[371693941,1752390647807,-500.0,0.00018511,2]
[371693942,1752390647816,-500.0,0.00018511,2]
[371693943,1752390647826,-500.0,0.00018511,2]
[371693944,1752390647835,-500.0,0.00018511,2]
[371693945,1752390647844,-500.0,0.00018511,2]
[371693946,1752390647853,-500.0,0.00018511,2]
[371693947,1752390647863,-500.0,0.00018511,2]
[371693948,1752390647873,-500.0,0.00018511,2]
[371693949,1752390647882,-550.0,0.00018511,2]
[371693950,1752390647891,-500.0,0.00018511,2]
[371693951,1752390647900,-431.77140965,0.00018511,2]
[371693952,1752390647910,-500.0,0.00018511,2]
[371693953,1752390647919,-500.0,0.00018511,2]
[371693954,1752390647928,-500.0,0.00018511,2]
[371693955,1752390647937,-500.0,0.00018511,2]
[371693956,1752390647948,-500.0,0.00018511,2]
[371693957,1752390647957,-500.0,0.00018511,2]
[371693958,1752390647966,-733.50320899,0.00018511,2]
[371693959,1752390647976,-733.50320899,0.00018511,2]
[371693960,1752390647985,-500.0,0.00018511,2]
[371693961,1752390647995,-733.50320899,0.00018511,2]
[371693962,1752390648004,-733.50320899,0.00018511,2]
[371693963,1752390648013,-500.0,0.00018511,2]
[371693964,1752390648022,-500.0,0.00018511,2]
[371693965,1752390648032,-733.50320899,0.00018511,2]
[371693966,1752390648041,-733.50320899,0.00018511,2]
[371693967,1752390648051,-500.0,0.00018511,2]
[371693968,1752390648061,-490.79995585,0.00018511,2]
[371693969,1752390648070,-500.0,0.00018511,2]
[371693970,1752390648079,-733.50320899,0.00018511,2]
[371693971,1752390648089,-733.50320899,0.00018511,2]
[371693972,1752390648099,-733.50320899,0.00018511,2]
[371693973,1752390648109,-733.50320899,0.00018511,2]
[371693974,1752390648119,-733.50320899,0.00018511,2]
[371693975,1752390648129,-868.68955623,0.00018511,2]
[371693976,1752390648140,-868.68955623,0.00018511,2]
[371693977,1752390648150,-868.68955623,0.00018511,2]
[371693978,1752390648160,-868.68955623,0.00018511,2]
[371693979,1752390648171,-151.0,0.00018511,2]
[371693980,1752390648180,-234.66,0.00018512,2]
[371693981,1752390648190,-460.0,0.00018512,2]
[371693982,1752390648201,-460.0,0.00018512,2]
[371693983,1752390648214,-460.0,0.00018512,2]
[371693984,1752390648224,-576.39,0.00018512,2]
[371693985,1752390648235,-460.0,0.00018512,2]
[371693986,1752390648244,-460.0,0.00018512,2]
[371693987,1752390648258,-474.76,0.00018512,2]
[371693988,1752390648272,-460.0,0.00018512,2]
[371693989,1752390648282,-464.95,0.00018512,2]
[371693990,1752390648292,-460.0,0.00018512,2]
[371693991,1752390648301,-562.92,0.00018512,2]
[371693992,1752390648310,-715.88,0.00018512,2]
[371693993,1752390648319,-460.0,0.00018512,2]
[371693994,1752390648329,-460.0,0.00018512,2]
[371693995,1752390648338,-2389.55,0.00018512,2]
[371693996,1752390648348,-664.35,0.00018512,2]
[371693997,1752390648358,-460.0,0.00018513,2]
[371693998,1752390648367,-504.5,0.00018513,2]
[371693999,1752390648377,-1008.27,0.00018513,2]
[371694000,1752390648388,-460.0,0.00018513,2]
[371694001,1752390648398,-605.53,0.00018513,2]
[371694002,1752390648408,-868.12,0.00018513,2]
[371694003,1752390648418,-579.23,0.00018513,2]
[371694004,1752390648428,-2752.06,0.00018513,2]
[371694005,1752390648437,-747.79,0.00018513,2]
[371694006,1752390648447,-460.0,0.00018515,2]
[371694007,1752390648457,-500.0,0.00018579,2]
[371694008,1752390648466,-500.0,0.00018579,2]
[371694009,1752390648475,-500.0,0.00018606,2]
[371694010,1752390648485,-500.0,0.00018606,2]
[371694011,1752390648495,-500.0,0.00018634,2]
[371694012,1752390648505,-500.0,0.00018634,2]
[371694013,1752390648514,-500.0,0.00018661,2]
[371694014,1752390648524,-500.0,0.00018661,2]
[371694015,1752390648533,-787.46,0.00018687,2]
[371694016,1752390648543,-3176.42,0.00018687,2]
[371694017,1752390648553,-1658.7,0.00018687,2]
[371694018,1752390648562,-947.81,0.00018687,2]
[371694019,1752390648572,-460.0,0.00018687,2]
[371694020,1752390648581,-1411.49,0.00018687,2]
[371694021,1752390648591,-856.23,0.00018687,2]
[371694022,1752390648599,-500.0,0.00018689,2]
[371694023,1752390648609,-500.0,0.00018689,2]
[371694024,1752390648618,-151.0,0.000187,2]
[371694025,1752390648627,-151.0,0.000187,2]
[371694026,1752390648637,-500.0,0.00018716,2]
[371694027,1752390648646,-500.0,0.00018716,2]
[371694028,1752390648655,-370.468,0.00018717,2]
[371694029,1752390648665,-768.79883834,0.00018721,2]
[371694030,1752390648675,-484.0,0.00018743,2]
[371694031,1752390648684,-500.0,0.00018743,2]
[371694032,1752390648693,-1895.5075078,0.00018749,2]
[371694033,1752390648703,-12230.09247233,0.00018762,2]
[371694034,1752390648712,-500.0,0.00018771,2]
[371694035,1752390648721,-460.0,0.00018786,2]
[371694036,1752390648731,-197.31974326,0.00018786,2]
[371694037,1752390648740,-460.0,0.00018786,2]
[371694038,1752390648749,-576.39,0.00018786,2]
[371694039,1752390648759,-460.0,0.00018786,2]
[371694040,1752390648768,-460.0,0.00018786,2]
[371694041,1752390648777,-474.76,0.00018786,2]
[371694042,1752390648787,-460.0,0.00018786,2]
[371694043,1752390648796,-464.95,0.00018786,2]
[371694044,1752390648806,-198.56976246,0.00018786,2]
[371694045,1752390648816,-562.92,0.00018786,2]
[371694046,1752390648825,-715.88,0.00018786,2]
[371694047,1752390648834,-460.0,0.00018786,2]
[371694048,1752390648844,-460.0,0.00018786,2]
[371694049,1752390648854,-2389.55,0.00018786,2]
[371694050,1752390648863,-664.35,0.00018786,2]
[371694051,1752390648873,-460.0,0.00018787,2]
[371694052,1752390648883,-504.5,0.00018787,2]
[371694053,1752390648893,-1008.27,0.00018787,2]
[371694054,1752390648902,-415.37,0.00018787,2]
[371694055,1752390648911,-605.53,0.00018787,2]
[371694056,1752390648921,-868.12,0.00018787,2]
[371694057,1752390648931,-579.23,0.00018787,2]
[371694058,1752390648942,-2752.06,0.00018787,2]
[371694059,1752390648953,-747.79,0.00018787,2]
[371694060,1752390648962,-460.0,0.00018789,2]
[371694061,1752390648972,-500.0,0.00018798,2]
[371694062,1752390648982,-151.0,0.000188,2]